fUSD/lending_fUSD_20241223
["ID","MTS","AMOUNT","RATE_DAILY","PERIOD"]
[346395946,1734939050550,-500.0,0.00019725,2]
[346395947,1734939050560,-500.0,0.00019725,2]
[346395948,1734939050570,-500.0,0.00019725,2]
[346395949,1734939050579,-500.0,0.00019725,2]
[346395950,1734939050589,-239.00796004,0.00019725,2]
[346395951,1734939050599,-500.0,0.00019725,2]
[346395952,1734939050609,-500.0,0.00019725,2]
[346395953,1734939050619,-500.0,0.00019725,2]
[346395954,1734939050629,-500.0,0.00019725,2]
[346395955,1734939050639,-500.0,0.00019725,2]
[346395956,1734939050649,-500.0,0.00019725,2]
[346395957,1734939050658,-648.5,0.00019725,2]
[346395958,1734939050668,-500.0,0.00019725,2]
[346395959,1734939050678,-500.0,0.00019725,2]
[346395960,1734939050687,-500.0,0.00019726,2]
[346395961,1734939050698,-500.0,0.00019726,2]
[346395962,1734939050707,-500.0,0.00019726,2]
[346395963,1734939050716,-500.0,0.00019726,2]
[346395964,1734939050726,-500.0,0.00019726,2]
[346395965,1734939050735,-500.0,0.00019726,2]
[346395966,1734939050746,-500.0,0.00019726,2]
[346395967,1734939050759,-506.6,0.00019726,2]
[346395968,1734939050769,-500.0,0.00019726,2]
[346395969,1734939050779,-500.0,0.00019726,2]
[346395970,1734939050788,-178.7,0.00019726,2]
[346395971,1734939050800,-510.84,0.00019726,2]
[346395972,1734939050809,-500.0,0.00019726,2]
[346395973,1734939050819,-500.0,0.00019726,2]
[346395974,1734939050828,-500.0,0.00019726,2]
[346395975,1734939050838,-523.32,0.00019726,2]
[346395976,1734939050848,-595.31,0.00019726,2]
[346395977,1734939050858,-188.45,0.00019726,2]
[346395978,1734939050868,-500.0,0.00019726,2]
[346395979,1734939050877,-500.0,0.00019726,2]
[346395980,1734939050887,-500.0,0.00019726,2]
[346395981,1734939050897,-500.0,0.00019726,2]
[346395982,1734939050906,-590.09,0.00019726,2]
[346395983,1734939050916,-500.0,0.00019726,2]
[346395984,1734939050926,-500.0,0.00019726,2]
[346395985,1734939050935,-500.0,0.00019726,2]
[346395986,1734939050945,-500.0,0.00019726,2]
[346395987,1734939050954,-500.0,0.00019726,2]
[346395988,1734939050964,-500.0,0.00019726,2]
[346395989,1734939050974,-500.0,0.00019726,2]
[346395990,1734939050984,-391.14,0.00019726,2]
[346395991,1734939050994,-500.0,0.00019726,2]
[346395992,1734939051004,-500.0,0.00019726,2]
[346395993,1734939051014,-500.0,0.00019726,2]
[346395994,1734939051024,-500.0,0.00019726,2]
[346395995,1734939051034,-500.0,0.00019726,2]
[346395996,1734939051043,-500.0,0.00019726,2]
[346395997,1734939051054,-500.0,0.00019726,2]
[346395998,1734939051064,-500.0,0.00019726,2]
[346395999,1734939051073,-597.39,0.00019726,2]
[346396000,1734939051082,-510.78,0.00019726,2]
[346396001,1734939051092,-859.56,0.00019726,2]
[346396002,1734939051102,-500.0,0.00019726,2]
[346396003,1734939051111,-500.0,0.00019726,2]
[346396004,1734939051121,-857.71,0.00019726,2]
[346396005,1734939051131,-541.04,0.00019726,2]
[346396006,1734939051140,-500.0,0.00019726,2]
[346396007,1734939051150,-500.0,0.00019726,2]
[346396008,1734939051160,-500.0,0.00019726,2]
[346396009,1734939051169,-500.0,0.00019726,2]
[346396010,1734939051179,-500.0,0.00019726,2]
[346396011,1734939051188,-500.0,0.00019726,2]
[346396012,1734939051198,-500.0,0.00019726,2]
[346396013,1734939051208,-301.20559547,0.00019726,2]
[346396014,1734939051218,-644.65,0.00019726,2]
[346396015,1734939051228,-500.0,0.00019726,2]
[346396016,1734939051402,-500.0,0.00019726,2]
[346396017,1734939051412,-619.22,0.00019726,2]
[346396018,1734939051421,-504.76,0.00019726,2]
[346396019,1734939051430,-626.42,0.00019726,2]
[346396020,1734939051439,-500.0,0.00019726,2]
[346396021,1734939051448,-692.13,0.00019726,2]
[346396022,1734939051457,-736.1,0.00019726,2]
[346396023,1734939051467,-365.23052247,0.00019726,2]
[346396024,1734939051476,-500.0,0.00019726,2]
[346396025,1734939051485,-500.0,0.00019726,2]
[346396026,1734939051495,-619.92,0.00019726,2]
[346396027,1734939051505,-500.0,0.00019726,2]
[346396028,1734939051514,-500.0,0.00019726,2]
[346396029,1734939051524,-500.0,0.00019726,2]
[346396030,1734939051533,-500.0,0.00019726,2]
[346396031,1734939051542,-500.0,0.00019726,2]
[346396032,1734939051555,-500.0,0.00019726,2]
[346396033,1734939051564,-695.52,0.00019726,2]
[346396034,1734939051573,-500.0,0.00019726,2]
[346396035,1734939051583,-500.0,0.00019726,2]
[346396036,1734939051592,-500.0,0.00019726,2]
[346396037,1734939051601,-500.0,0.00019726,2]
[346396038,1734939051611,-636.17,0.00019726,2]
[346396039,1734939051620,-500.0,0.00019726,2]
[346396040,1734939051630,-643.31,0.00019726,2]
[346396041,1734939051639,-500.0,0.00019726,2]
[346396042,1734939051649,-615.0,0.00019726,2]
[346396043,1734939051658,-500.0,0.00019726,2]
[346396044,1734939051667,-500.0,0.00019726,2]
[346396045,1734939051677,-226.35,0.00019726,2]
[346396046,1734939051686,-656.64,0.00019726,2]
[346396047,1734939051696,-150.300993,0.00019726,2]
[346396048,1734939051705,-500.0,0.00019726,2]
[346396049,1734939051715,-500.0,0.00019726,2]
[346396050,1734939051725,-551.38,0.00019726,2]
[346396051,1734939051735,-500.0,0.00019726,2]
[346396052,1734939051744,-913.45,0.00019726,2]
[346396053,1734939051758,-500.0,0.00019726,2]
[346396054,1734939051767,-627.89,0.00019726,2]
[346396055,1734939051777,-866.49,0.00019726,2]
[346396056,1734939051787,-877.21,0.00019726,2]
[346396057,1734939051797,-500.0,0.00019726,2]
[346396058,1734939051811,-500.0,0.00019726,2]
[346396059,1734939051821,-500.0,0.00019726,2]
[346396060,1734939051831,-741.44,0.00019726,2]
[346396061,1734939051841,-500.0,0.00019726,2]
[346396062,1734939051851,-500.0,0.00019726,2]
[346396063,1734939051861,-500.0,0.00019726,2]
[346396064,1734939051870,-502.89,0.00019726,2]
[346396065,1734939051880,-728.49,0.00019726,2]
[346396066,1734939051889,-1438.82,0.00019726,2]
[346396067,1734939051898,-500.0,0.00019726,2]
[346396068,1734939051907,-556.92,0.00019726,2]
[346396069,1734939051917,-500.0,0.00019726,2]
[346396070,1734939051927,-500.0,0.00019726,2]
[346396071,1734939051936,-1052.68,0.00019726,2]
[346396072,1734939051946,-7125.37,0.00019726,2]
[346396073,1734939051955,-1029.91,0.00019726,2]
[346396074,1734939051964,-500.0,0.00019726,2]
[346396075,1734939051974,-198.309265,0.00019726,2]
[346396076,1734939051983,-815.19,0.00019726,2]
[346396077,1734939051992,-1084.05,0.00019726,2]
[346396078,1734939052002,-784.81,0.00019726,2]
[346396079,1734939052011,-500.0,0.00019726,2]
[346396080,1734939052021,-977.95,0.00019726,2]
[346396081,1734939052031,-658.26,0.00019726,2]
[346396082,1734939052041,-880.7,0.00019726,2]
[346396083,1734939052051,-720.99,0.00019726,2]
[346396084,1734939052061,-1664.87,0.00019726,2]
[346396085,1734939052070,-500.0,0.00019726,2]
[346396086,1734939052079,-830.81,0.00019726,2]
[346396087,1734939052088,-193.55,0.00019726,2]
[346396088,1734939052098,-500.0,0.00019726,2]
[346396089,1734939052107,-1193.69,0.00019726,2]
[346396090,1734939052116,-1622.08,0.00019726,2]
[346396091,1734939052126,-1328.72,0.00019726,2]
[346396092,1734939052136,-674.35,0.00019726,2]
[346396093,1734939052145,-2901.46,0.00019726,2]
[346396094,1734939052154,-500.0,0.00019726,2]
[346396095,1734939052164,-500.0,0.00019726,2]
[346396096,1734939052173,-740.32,0.00019726,2]
[346396097,1734939052183,-1133.42,0.00019726,2]
[346396098,1734939052192,-1707.1,0.00019726,2]
[346396099,1734939052202,-833.41,0.00019726,2]
[346396100,1734939052211,-990.59,0.00019726,2]
[346396101,1734939052220,-654.35,0.00019726,2]
[346396102,1734939052230,-2310.83,0.00019726,2]
[346396103,1734939052239,-1371.44,0.00019726,2]
[346396104,1734939052248,-500.0,0.00019726,2]
[346396105,1734939052257,-1827.98,0.00019726,2]
[346396106,1734939052267,-500.0,0.00019726,2]
[346396107,1734939052276,-2022.37,0.00019726,2]
[346396108,1734939052286,-500.0,0.00019726,2]
[346396109,1734939052295,-676.94,0.00019726,2]
[346396110,1734939052308,-8328.5,0.00019726,2]
[346396111,1734939052317,-1480.58,0.00019726,2]
[346396112,1734939052327,-500.0,0.00019726,2]
[346396113,1734939052337,-1360.44,0.00019726,2]
[346396114,1734939052347,-500.0,0.00019726,2]
[346396115,1734939052356,-152.321553,0.00019726,2]
[346396116,1734939052366,-1343.03,0.00019726,2]
[346396117,1734939052375,-500.0,0.00019726,2]
[346396118,1734939052384,-688.61,0.00019726,2]
[346396119,1734939052393,-2425.76,0.00019726,2]
[346396120,1734939052403,-2514.32,0.00019726,2]
[346396121,1734939052413,-11807.11,0.00019726,2]
[346396122,1734939052422,-624.24,0.00019726,2]
[346396123,1734939052432,-500.0,0.00019726,2]
[346396124,1734939052441,-3872.77,0.00019726,2]
[346396125,1734939052451,-500.0,0.00019726,2]
[346396126,1734939052460,-24409.79,0.00019726,2]
[346396127,1734939052470,-912.22,0.00019726,2]
[346396128,1734939052479,-3264.49,0.00019726,2]
[346396129,1734939052489,-500.0,0.00019726,2]
[346396130,1734939052498,-1105.36,0.00019726,2]
[346396131,1734939052508,-513.86,0.00019726,2]
[346396132,1734939052517,-933.96,0.00019726,2]
[346396133,1734939052527,-1645.06,0.00019726,2]
[346396134,1734939052536,-500.0,0.00019726,2]
[346396135,1734939052545,-532.84001237,0.00019726,2]
[346396136,1734939052556,-1751.99,0.00019726,2]
[346396137,1734939052565,-1406.34,0.00019726,2]
[346396138,1734939052575,-656.01,0.00019726,2]
[346396139,1734939052585,-2050.95,0.00019726,2]
[346396140,1734939052594,-1038.39,0.00019726,2]
[346396141,1734939052604,-500.0,0.00019726,2]
[346396142,1734939052614,-559.33,0.00019726,2]
[346396143,1734939052623,-2186.66,0.00019726,2]
[346396144,1734939052632,-500.0,0.00019726,2]
[346396145,1734939052642,-1101.81,0.00019726,2]
[346396146,1734939052651,-500.0,0.00019726,2]
[346396147,1734939052661,-1353.07,0.00019726,2]
[346396148,1734939052670,-500.0,0.00019726,2]
[346396149,1734939052679,-1965.58,0.00019726,2]
[346396150,1734939052688,-500.0,0.00019726,2]
[346396151,1734939052698,-500.0,0.00019726,2]
[346396152,1734939052708,-500.0,0.00019726,2]
[346396153,1734939052717,-1020.65,0.00019726,2]
[346396154,1734939052726,-500.0,0.00019726,2]
[346396155,1734939052736,-158.49543,0.00019726,2]
[346396156,1734939052745,-6793.18,0.00019726,2]
[346396157,1734939052758,-500.0,0.00019726,2]
[346396158,1734939052767,-500.0,0.00019726,2]
[346396159,1734939052776,-1047.66,0.00019726,2]
[346396160,1734939052786,-1134.23,0.00019726,2]
[346396161,1734939052797,-150.292812,0.00019726,2]
[346396162,1734939052809,-500.0,0.00019726,2]
[346396163,1734939052819,-500.0,0.00019726,2]
[346396164,1734939052830,-1053.82,0.00019726,2]
[346396165,1734939052840,-1080.84,0.00019726,2]
[346396166,1734939052850,-500.0,0.00019726,2]
[346396167,1734939052859,-1299.88,0.00019726,2]
[346396168,1734939052868,-2554.68,0.00019726,2]
[346396169,1734939052878,-956.6,0.00019726,2]
[346396170,1734939052887,-500.0,0.00019726,2]
[346396171,1734939052897,-500.0,0.00019726,2]
[346396172,1734939052906,-3160.78,0.00019726,2]
[346396173,1734939052915,-4912.17,0.00019726,2]
[346396174,1734939052924,-500.0,0.00019726,2]
[346396175,1734939052934,-3061.96,0.00019726,2]
[346396176,1734939052943,-500.0,0.00019726,2]
[346396177,1734939052952,-1896.09,0.00019726,2]
[346396178,1734939052961,-812.76,0.00019726,2]
[346396179,1734939052971,-9129.34,0.00019726,2]
[346396180,1734939052980,-1076.96,0.00019726,2]
[346396181,1734939052990,-2099.59,0.00019726,2]
[346396182,1734939052999,-500.0,0.00019726,2]
[346396183,1734939053008,-6687.44,0.00019726,2]
[346396184,1734939053017,-598.2,0.00019726,2]
[346396185,1734939053026,-2946.48,0.00019726,2]
[346396186,1734939053035,-835.09,0.00019726,2]
[346396187,1734939053044,-1412.78,0.00019726,2]
[346396188,1734939053057,-1663.59,0.00019726,2]
[346396189,1734939053066,-500.0,0.00019726,2]
[346396190,1734939053076,-500.0,0.00019726,2]
[346396191,1734939053085,-500.0,0.00019726,2]
[346396192,1734939053095,-556.32397331,0.00019726,2]
[346396193,1734939053104,-500.0,0.00019726,2]
[346396194,1734939053114,-4359.49,0.00019726,2]
[346396195,1734939053123,-500.0,0.00019726,2]
[346396196,1734939053132,-17872.73,0.00019726,2]
[346396197,1734939053141,-1937.03,0.00019726,2]
[346396198,1734939053150,-500.0,0.00019726,2]
[346396199,1734939053159,-500.0,0.00019726,2]
[346396200,1734939053168,-3327.65,0.00019726,2]
[346396201,1734939053177,-2624.25,0.00019726,2]
[346396202,1734939053187,-4460.7,0.00019726,2]
[346396203,1734939053196,-500.0,0.00019726,2]
[346396204,1734939053205,-516.33,0.00019726,2]
[346396205,1734939053214,-686.77,0.00019726,2]
[346396206,1734939053224,-500.0,0.00019726,2]
[346396207,1734939053233,-500.0,0.00019726,2]
[346396208,1734939053242,-500.0,0.00019726,2]
[346396209,1734939053252,-1269.73,0.00019726,2]
[346396210,1734939053261,-2083.08,0.00019726,2]
[346396211,1734939053271,-228.325575,0.00019726,2]
[346396212,1734939053281,-500.0,0.00019726,2]
[346396213,1734939053290,-1807.71,0.00019726,2]
[346396214,1734939053300,-500.0,0.00019726,2]
[346396215,1734939053310,-500.0,0.00019726,2]
[346396216,1734939053319,-788.4,0.00019726,2]
[346396217,1734939053328,-4481.48,0.00019726,2]
[346396218,1734939053338,-2273.09,0.00019726,2]
[346396219,1734939053347,-219.935759,0.00019726,2]
[346396220,1734939053357,-1094.98,0.00019726,2]
[346396221,1734939053366,-1695.99,0.00019726,2]
[346396222,1734939053375,-504.02212258,0.00019726,2]
[346396223,1734939053384,-2031.22,0.00019726,2]
[346396224,1734939053393,-2934.28,0.00019726,2]
[346396225,1734939053403,-871.22,0.00019726,2]
[346396226,1734939053412,-2057.22,0.00019726,2]
[346396227,1734939053421,-771.28,0.00019726,2]
[346396228,1734939053431,-500.0,0.00019726,2]
[346396229,1734939053440,-3880.21,0.00019726,2]
[346396230,1734939053449,-500.0,0.00019726,2]
[346396231,1734939053458,-500.0,0.00019726,2]
[346396232,1734939053467,-500.0,0.00019726,2]
[346396233,1734939053476,-405.618264,0.00019726,2]
[346396234,1734939053485,-500.0,0.00019726,2]
[346396235,1734939053495,-1311.77,0.00019726,2]
[346396236,1734939053504,-3934.56,0.00019726,2]
[346396237,1734939053514,-8498.87,0.00019726,2]
[346396238,1734939053523,-500.0,0.00019726,2]
[346396239,1734939053533,-8954.16,0.00019726,2]
[346396240,1734939053542,-500.0,0.00019726,2]
[346396241,1734939053552,-500.0,0.00019726,2]
[346396242,1734939053561,-500.0,0.00019726,2]
[346396243,1734939053570,-315.85225,0.00019726,2]
[346396244,1734939053579,-746.62,0.00019726,2]
[346396245,1734939053589,-500.0,0.00019726,2]
[346396246,1734939053598,-500.0,0.00019726,2]
[346396247,1734939053608,-4489.86,0.00019726,2]
[346396248,1734939053618,-500.0,0.00019726,2]
[346396249,1734939053628,-1021.27,0.00019726,2]
[346396250,1734939053638,-500.0,0.00019726,2]
[346396251,1734939053696,-500.0,0.00019726,2]
[346396252,1734939053706,-1726.33,0.00019726,2]
[346396253,1734939053716,-711.05,0.00019726,2]
[346396254,1734939053725,-500.0,0.00019726,2]
[346396255,1734939053735,-500.0,0.00019726,2]
[346396256,1734939053745,-670.851473,0.00019726,2]
[346396257,1734939053758,-500.0,0.00019726,2]
[346396258,1734939053767,-500.0,0.00019726,2]
[346396259,1734939053777,-1931.21,0.00019726,2]
[346396260,1734939053787,-500.0,0.00019726,2]
[346396261,1734939053797,-3146.81,0.00019726,2]
[346396262,1734939053809,-527.8686706,0.00019726,2]
[346396263,1734939053818,-500.0,0.00019726,2]
[346396264,1734939053828,-500.0,0.00019726,2]
[346396265,1734939053838,-500.0,0.00019726,2]
[346396266,1734939053847,-150.0,0.00019726,2]
[346396267,1734939053857,-202.61,0.00019726,2]
[346396268,1734939053866,-1500.0,0.00019729,2]
[346396269,1734939053875,-150.0,0.00019731,2]
[346396270,1734939053885,-150.0,0.00019732,2]
[346396271,1734939053895,-150.0,0.00019734,2]
[346396272,1734939053904,-150.0,0.00019735,2]
[346396273,1734939053913,-626.53,0.00019736,2]
[346396274,1734939053922,-150.0,0.00019737,2]
[346396275,1734939053932,-150.0,0.00019741,2]
[346396276,1734939053941,-150.0,0.00019741,2]
[346396277,1734939053950,-150.0,0.00019742,2]
[346396278,1734939053959,-633.0,0.00019743,2]
[346396279,1734939053969,-150.0,0.00019743,2]
[346396280,1734939053977,-565.0,0.00019743,2]
[346396281,1734939053987,-1899.0,0.00019743,2]
[346396282,1734939053997,-1256.0,0.00019743,2]
[346396283,1734939054006,-3770.0,0.00019743,2]
[346396284,1734939054016,-818.0,0.00019743,2]
[346396285,1734939054025,-924.0,0.00019743,2]
[346396286,1734939054034,-3682.0,0.00019743,2]
[346396287,1734939054044,-536.0,0.00019743,2]
[346396288,1734939054054,-1500.0,0.00019743,2]
[346396289,1734939054064,-9592.0,0.00019743,2]
[346396290,1734939054073,-1170.0,0.00019743,2]
[346396291,1734939054082,-150.0,0.00019743,2]
[346396292,1734939054091,-1265.0,0.00019743,2]
[346396293,1734939054100,-2011.0,0.00019743,2]
[346396294,1734939054110,-635.0,0.00019743,2]
[346396295,1734939054119,-150.0,0.00019744,2]
[346396296,1734939054128,-150.0,0.00019746,2]
[346396297,1734939054137,-150.0,0.00019747,2]
[346396298,1734939054147,-150.0,0.00019748,2]
[346396299,1734939054156,-150.0,0.00019748,2]
[346396300,1734939054165,-150.0,0.00019752,2]
[346396301,1734939054174,-150.0,0.00019757,2]
[346396302,1734939054184,-150.0,0.00019759,2]
[346396303,1734939054193,-150.0,0.00019759,2]
[346396304,1734939054202,-150.0,0.00019762,2]
[346396305,1734939054212,-150.0,0.00019765,2]
[346396306,1734939054221,-150.0,0.00019766,2]
[346396307,1734939054230,-150.0,0.00019767,2]
[346396308,1734939054239,-182.803,0.0001977,2]
[346396309,1734939054248,-3387.582,0.0001977,2]
[346396310,1734939054258,-1500.0,0.00019772,2]
[346396311,1734939054267,-501.43939903,0.00019773,2]
[346396312,1734939054276,-500.89531538,0.00019773,2]
[346396313,1734939054286,-500.0,0.00019773,2]
[346396314,1734939054295,-500.0,0.00019773,2]
[346396315,1734939054305,-504.92020399,0.00019773,2]
[346396316,1734939054315,-159.74298944,0.00019773,2]
[346396317,1734939054324,-500.42433932,0.00019773,2]
[346396318,1734939054334,-150.0,0.00019776,2]
[346396319,1734939054344,-150.0,0.00019784,2]
[346396320,1734939054353,-150.0,0.00019787,2]
[346396321,1734939054363,-150.0,0.00019788,2]
[346396322,1734939054372,-150.0,0.00019788,2]
[346396323,1734939054381,-934.27989966,0.00019789,2]
[346396324,1734939054391,-150.0,0.00019791,2]
[346396325,1734939054400,-200.0,0.00019798,2]
[346396326,1734939054409,-150.0,0.00019798,2]
[346396327,1734939054419,-150.0,0.00019798,2]
[346396328,1734939054428,-150.0,0.00019798,2]
[346396329,1734939054438,-150.0,0.00019799,2]
[346396330,1734939054447,-16544.39486439,0.000198,2]
[346396331,1734939054457,-2480.0,0.000198,2]
[346396332,1734939054467,-5646.02030097,0.000198,2]
[346396333,1734939054476,-24403.002357,0.000198,2]
[346396334,1734939054486,-24403.002357,0.000198,2]
[346396335,1734939054496,-24403.002357,0.000198,2]
[346396336,1734939054505,-24403.002357,0.000198,2]
[346396337,1734939054515,-24403.002357,0.000198,2]
[346396338,1734939054524,-24403.002357,0.000198,2]
[346396339,1734939054534,-24403.002357,0.000198,2]
[346396340,1734939054543,-24403.002357,0.000198,2]
[346396341,1734939054552,-24403.002357,0.000198,2]
[346396342,1734939054561,-24403.002357,0.000198,2]
[346396343,1734939054570,-24403.002357,0.000198,2]
[346396344,1734939054580,-24403.002357,0.000198,2]
[346396345,1734939054589,-24403.002357,0.000198,2]
[346396346,1734939054600,-784286.32171241,0.000198,2]
[346396347,1734939054610,-24403.002357,0.000198,2]
[346396348,1734939054619,-24403.002357,0.000198,2]
[346396349,1734939054629,-24403.002357,0.000198,2]
[346396350,1734939054638,-24403.002357,0.000198,2]
[346396351,1734939054647,-24403.002357,0.000198,2]
[346396352,1734939054657,-24403.002357,0.000198,2]
[346396353,1734939054666,-24403.002357,0.000198,2]
[346396354,1734939054675,-24403.002357,0.000198,2]
[346396355,1734939054684,-24403.002357,0.000198,2]
[346396356,1734939054693,-109761.72042301,0.000198,2]
[346396357,1734939054703,-151.0,0.000198,2]
[346396358,1734939054712,-151.0,0.000198,2]
[346396359,1734939054721,-151.0,0.000198,2]
[346396360,1734939054730,-151.0,0.000198,2]
[346396361,1734939054739,-151.0,0.000198,2]
[346396362,1734939054748,-160.045859,0.000198,2]
[346396363,1734939054760,-5719.000515,0.000198,2]
[346396364,1734939054770,-5719.000515,0.000198,2]
[346396365,1734939054779,-5719.000515,0.000198,2]
[346396366,1734939054788,-5719.000515,0.000198,2]
[346396367,1734939054798,-151.0,0.000198,2]
[346396368,1734939054807,-151.0,0.000198,2]
[346396369,1734939054816,-204.206733,0.000198,2]
[346396370,1734939054827,-245.65,0.000198,2]
[346396371,1734939054836,-151.0,0.000198,2]
[346396372,1734939054845,-151.0,0.000198,2]
[346396373,1734939054855,-150.0,0.00019801,2]
[346396374,1734939054865,-150.0,0.00019802,2]
[346396375,1734939054874,-1500.0,0.00019812,2]
[346396376,1734939054884,-150.0,0.00019812,2]
[346396377,1734939054893,-150.0,0.00019817,2]
[346396378,1734939054902,-150.0,0.00019817,2]
[346396379,1734939054911,-150.0,0.00019819,2]
[346396380,1734939054921,-150.0,0.0001982,2]
[346396381,1734939054930,-150.0,0.00019821,2]
[346396382,1734939054939,-150.0,0.00019823,2]
[346396383,1734939054948,-150.0,0.00019826,2]
[346396384,1734939054958,-150.0,0.00019826,2]
[346396385,1734939054968,-150.0,0.00019828,2]
[346396386,1734939054977,-201.0,0.00019828,2]
[346396387,1734939054986,-258.81,0.00019828,2]
[346396388,1734939054996,-251.01,0.00019828,2]
[346396389,1734939055005,-150.0,0.00019829,2]
[346396390,1734939055015,-150.0,0.00019833,2]
[346396391,1734939055025,-150.0,0.00019836,2]
[346396392,1734939055035,-150.0,0.00019836,2]
[346396393,1734939055044,-153.90241531,0.00019839,2]
[346396394,1734939055055,-500.0,0.0001984,2]
[346396395,1734939055065,-150.0,0.0001984,2]
[346396396,1734939055075,-150.0,0.00019841,2]
[346396397,1734939055085,-150.0,0.00019842,2]
[346396398,1734939055096,-150.0,0.00019842,2]
[346396399,1734939055105,-2000.0,0.00019843,2]
[346396400,1734939055115,-200.0,0.00019843,2]
[346396401,1734939055124,-399.22804406,0.00019843,2]
[346396402,1734939055134,-200.0,0.00019843,2]
[346396403,1734939055143,-200.0,0.00019843,2]
[346396404,1734939055152,-150.0,0.0001985,2]
[346396405,1734939055162,-1500.0,0.00019862,2]
[346396406,1734939055171,-150.0,0.00019863,2]
[346396407,1734939055181,-150.0,0.00019863,2]
[346396408,1734939055191,-150.0,0.00019864,2]
[346396409,1734939055200,-1500.0,0.00019865,2]
[346396410,1734939055209,-151.0,0.00019865,2]
[346396411,1734939055219,-151.0,0.00019865,2]
[346396412,1734939055228,-151.0,0.00019865,2]
[346396413,1734939055238,-151.0,0.00019865,2]
[346396414,1734939055247,-151.0,0.00019865,2]
[346396415,1734939055256,-151.0,0.00019865,2]
[346396416,1734939055265,-151.0,0.00019865,2]
[346396417,1734939055274,-164.343216,0.00019865,2]
[346396418,1734939055283,-164.343216,0.00019865,2]
[346396419,1734939055292,-151.0,0.00019865,2]
[346396420,1734939055302,-1209.78002948,0.00019866,2]
[346396421,1734939055311,-150.0,0.00019866,2]
[346396422,1734939055321,-150.0,0.00019867,2]
[346396423,1734939055329,-150.0,0.00019869,2]
[346396424,1734939055339,-626.53,0.00019873,2]
[346396425,1734939055349,-150.0,0.00019874,2]
[346396426,1734939055359,-23514.82306532,0.00019875,2]
[346396427,1734939055368,-150.0,0.00019875,2]
[346396428,1734939055377,-150.0,0.00019875,2]
[346396429,1734939055386,-150.0,0.00019875,2]
[346396430,1734939055395,-150.0,0.00019877,2]
[346396431,1734939055405,-150.0,0.00019879,2]
[346396432,1734939055414,-150.0,0.00019886,2]
[346396433,1734939055424,-5800.0,0.00019892,2]
[346396434,1734939055433,-155.59,0.00019895,2]
[346396435,1734939055442,-150.0,0.00019896,2]
[346396436,1734939055451,-150.0,0.00019896,2]
[346396437,1734939055460,-29669.167392,0.000199,2]
[346396438,1734939055470,-500.0,0.000199,2]
[346396439,1734939055479,-500.0,0.000199,2]
[346396440,1734939055488,-500.0,0.000199,2]
[346396441,1734939055497,-500.0,0.000199,2]
[346396442,1734939055506,-500.0,0.000199,2]
[346396443,1734939055516,-439.2466,0.000199,2]
[346396444,1734939055525,-1000.0,0.000199,2]
[346396445,1734939055535,-1000.0,0.000199,2]